fUST/lending_fUST_20260625
["ID","MTS","AMOUNT","RATE_DAILY","PERIOD"]
[426389468,1782337841000,-173.94,0.00037712,49]
[426389471,1782337841000,-661.540865,0.00038898,2]
[426389469,1782337841000,-155.21,0.000383,120]
[426389467,1782337841000,-231.322208,0.00037364,2]
[426389463,1782337841000,-500.0,0.00036418,2]
[426389470,1782337841000,-155.21,0.000388,120]
[426389474,1782337841000,-200.0,0.00039527,80]
[426389473,1782337841000,-155.21,0.000393,120]
[426389476,1782337841000,-1005.0,0.00039788,14]
[426389477,1782337841000,-1005.0,0.00039788,14]
[426389481,1782337841000,-1000.0,0.00039788,14]
[426389475,1782337841000,-1005.0,0.00039788,14]
[426389479,1782337841000,-1005.0,0.00039788,14]
[426389478,1782337841000,-1005.0,0.00039788,14]
[426389480,1782337841000,-1005.0,0.00039788,14]
[426389483,1782337841000,-500.0,0.00039799,2]
[426389484,1782337841000,-500.0,0.00039799,60]
[426389482,1782337841000,-500.0,0.00039799,60]
[426389486,1782337841000,-500.0,0.00039799,60]
[426389487,1782337841000,-647.66,0.000398,14]
[426389485,1782337841000,-500.0,0.00039799,60]
[426389490,1782337841000,-437.70011403,0.00039961,3]
[426389491,1782337841000,-218.33776019,0.00039961,3]
[426389488,1782337841000,-155.21,0.000398,120]
[426389489,1782337841000,-252.73837912,0.00039805,14]
[426389434,1782337841000,-500.0,0.00036279,15]
[426389472,1782337841000,-168.28805921,0.00039233,2]
[426389465,1782337841000,-210.67982681,0.00036992,2]
[426389417,1782337841000,-500.0,0.00036279,15]
[426389462,1782337841000,-156.12757092,0.00036355,14]
[426389464,1782337841000,-320.0,0.00036734,3]
[426389436,1782337841000,-500.0,0.00036279,15]
[426389437,1782337841000,-500.0,0.00036279,15]
[426389438,1782337841000,-500.0,0.00036279,15]
[426389440,1782337841000,-500.0,0.00036279,15]
[426389441,1782337841000,-500.0,0.00036279,15]
[426389443,1782337841000,-500.0,0.00036279,15]
[426389445,1782337841000,-500.0,0.00036279,15]
[426389447,1782337841000,-500.0,0.00036279,15]
[426389439,1782337841000,-500.0,0.00036279,15]
[426389446,1782337841000,-500.0,0.00036279,15]
[426389444,1782337841000,-500.0,0.00036279,15]
[426389442,1782337841000,-500.0,0.00036279,15]
[426389435,1782337841000,-500.0,0.00036279,15]
[426389449,1782337841000,-500.0,0.00036279,15]
[426389448,1782337841000,-500.0,0.00036279,15]
[426389461,1782337841000,-910.29457089,0.00036281,2]
[426389460,1782337841000,-500.0,0.00036279,15]
[426389456,1782337841000,-500.0,0.00036279,15]
[426389459,1782337841000,-500.0,0.00036279,15]
[426389455,1782337841000,-500.0,0.00036279,15]
[426389458,1782337841000,-500.0,0.00036279,15]
[426389452,1782337841000,-500.0,0.00036279,15]
[426389457,1782337841000,-500.0,0.00036279,15]
[426389451,1782337841000,-500.0,0.00036279,15]
[426389450,1782337841000,-500.0,0.00036279,15]
[426389453,1782337841000,-500.0,0.00036279,15]
[426389454,1782337841000,-583.97159522,0.00036279,15]
[426389499,1782337842000,-660.06204379,0.00040139,31]
[426389503,1782337842000,-660.06204379,0.00040139,31]
[426389504,1782337842000,-660.06204379,0.00040139,31]
[426389506,1782337842000,-660.06204379,0.00040139,31]
[426389502,1782337842000,-660.06204379,0.00040139,31]
[426389500,1782337842000,-660.06204379,0.00040139,31]
[426389494,1782337842000,-660.06204379,0.00040139,31]
[426389497,1782337842000,-660.06204379,0.00040139,31]
[426389498,1782337842000,-660.06204379,0.00040139,31]
[426389496,1782337842000,-320.91773593,0.00040139,31]
[426389493,1782337842000,-660.06204379,0.00040139,31]
[426389505,1782337842000,-660.06204379,0.00040139,31]
[426389492,1782337842000,-166.90557505,0.00040018,2]
[426389507,1782337842000,-660.06204379,0.00040139,31]
[426389508,1782337842000,-660.06204379,0.00040139,31]
[426389495,1782337842000,-660.06204379,0.00040139,31]
[426389516,1782337842000,-709.56669706,0.00040139,31]
[426389509,1782337842000,-660.06204379,0.00040139,31]
[426389523,1782337842000,-673.94304487,0.0004014,2]
[426389524,1782337842000,-326.05695513,0.0004014,2]
[426389522,1782337842000,-114097.54878929,0.0004014,2]
[426389521,1782337842000,-796.54584057,0.00040139,31]
[426389520,1782337842000,-796.54584057,0.00040139,31]
[426389514,1782337842000,-709.56669706,0.00040139,31]
[426389518,1782337842000,-709.56669706,0.00040139,31]
[426389501,1782337842000,-660.06204379,0.00040139,31]
[426389517,1782337842000,-709.56669706,0.00040139,31]
[426389510,1782337842000,-660.06204379,0.00040139,31]
[426389515,1782337842000,-709.56669706,0.00040139,31]
[426389513,1782337842000,-709.56669706,0.00040139,31]
[426389519,1782337842000,-796.54584057,0.00040139,31]
[426389512,1782337842000,-709.56669706,0.00040139,31]
[426389511,1782337842000,-709.56669706,0.00040139,31]
[426389542,1782337843000,-50644.81170348,0.0004014,2]
[426389541,1782337843000,-8282.8020196,0.0004014,2]
[426389539,1782337843000,-204.278,0.00036068,30]
[426389540,1782337843000,-217.285,0.00036342,120]
[426389552,1782337846000,-500.0,0.00036279,15]
[426389551,1782337846000,-500.0,0.00036279,15]
[426389553,1782337846000,-2735.14919918,0.00039,120]
[426389550,1782337846000,-500.0,0.00036279,15]
[426389549,1782337846000,-222.04505121,0.00036279,15]
[426389600,1782338012000,288.6290561,0.0002448,30]
[426389617,1782338081000,500.0,0.00028888,60]
[426389619,1782338081000,500.0,0.00028888,60]
[426389621,1782338081000,500.0,0.00028888,60]
[426389618,1782338081000,500.0,0.00028888,60]
[426389622,1782338082000,500.0,0.00028888,60]
[426389624,1782338082000,500.0,0.00028888,60]
[426389623,1782338082000,500.0,0.00028888,60]
[426389628,1782338083000,500.0,0.00028888,60]
[426389627,1782338083000,500.0,0.00028888,60]
[426389626,1782338083000,500.0,0.00028888,60]
[426389625,1782338083000,500.0,0.00028888,60]
[426389630,1782338084000,500.0,0.00028888,60]
[426389629,1782338084000,500.0,0.00028888,60]
[426389645,1782338120000,1500.0,0.0001,30]
[426389667,1782338239000,-486.16744809,0.000176,2]
[426389668,1782338241000,-200.0,0.000176,2]
[426389669,1782338242000,-537.22849826,0.000176,2]
[426389670,1782338242000,-612.77150174,0.000176,2]
[426389671,1782338244000,-199.20355669,0.000176,2]
[426389673,1782338246000,36.89030885,0.00013,2]
[426389672,1782338246000,396.56780122,0.00013,2]
[426389674,1782338251000,-462.77150174,0.00017,2]
[426389676,1782338252000,-327.90110641,0.00017,2]
[426389675,1782338252000,-187.22849826,0.00017,2]
[426389678,1782338253000,-194.68545388,0.00017,2]
[426389681,1782338254000,3324.86067653,0.0001,10]
[426389683,1782338255000,3015.68892349,7.6e-05,2]
[426389691,1782338259000,3576.35537141,0.0001,2]
[426389690,1782338259000,3622.56009113,0.0001,2]
[426389693,1782338260000,-334.04070011,0.00017,2]
[426389694,1782338261000,-342.56298814,0.00017,2]
[426389695,1782338263000,4046.96179709,0.00012,2]
[426389755,1782338320000,-500.0,0.00016999,2]
[426389756,1782338320000,-346.45016202,0.00016999,2]
[426389754,1782338320000,-153.54983798,0.00016999,2]
[426389758,1782338322000,-500.0,0.00016999,2]
[426389759,1782338322000,-346.45016202,0.00016999,2]
[426389757,1782338322000,-153.54983798,0.00016999,2]
[426389763,1782338323000,-500.0,0.00016999,2]
[426389764,1782338323000,-346.45016202,0.00016999,2]
[426389762,1782338323000,-153.54983798,0.00016999,2]
[426389766,1782338325000,-191.79431904,0.00016999,2]
[426389765,1782338325000,-153.54983798,0.00016999,2]
[426389767,1782338325000,-500.0,0.00016999,2]
[426389768,1782338325000,-154.65584298,0.00016999,2]
[426389771,1782338326000,-500.0,0.00016999,2]
[426389770,1782338326000,-345.34415702,0.00016999,2]
[426389772,1782338326000,-154.65584298,0.00016999,2]
[426389776,1782338327000,-154.65584298,0.00016999,2]
[426389775,1782338327000,-500.0,0.00016999,2]
[426389774,1782338327000,-345.34415702,0.00016999,2]
[426389780,1782338329000,-500.0,0.00016999,2]
[426389781,1782338329000,-154.65584298,0.00017,2]
[426389779,1782338329000,-345.34415702,0.00016999,2]
[426389785,1782338334000,-1006.0,0.00017,2]
[426389792,1782338352000,3703.24130104,0.00028888,120]
[426389856,1782338510000,-300.0,0.00016999,2]
[426389864,1782338527000,-262.96967388,0.00017,2]
[426389871,1782338544000,-300.0,0.00017,2]
[426389873,1782338560000,-262.96967388,0.00017,2]
[426389909,1782338730000,-207.85928486,0.000169,2]
[426389951,1782338947000,-16467.88433092,0.00017,2]
[426389950,1782338947000,-500.0,0.00016999,2]
[426389949,1782338947000,-500.0,0.00016999,2]
[426389952,1782338950000,-83181.33731414,0.00017,2]
[426389954,1782338950000,-2515.2803823,0.00017275,2]
[426389953,1782338950000,-567.22334468,0.00017,2]
[426389956,1782338950000,-181.706844,0.00017603,2]
[426389955,1782338950000,-139.48028174,0.000176,2]
[426389957,1782338950000,-11091.8326677,0.00017746,2]
[426389959,1782338950000,-1000.0,0.00019178,2]
[426389962,1782338950000,-884.56125332,0.00019178,2]
[426389960,1782338950000,-1000.0,0.00019178,2]
[426389963,1782338950000,-387.87189985,0.00019178,2]
[426389965,1782338950000,-300.0,0.00019999,3]
[426389964,1782338950000,-187.506,0.000196,2]
[426389966,1782338950000,-54463.65386428,0.0002,2]
[426389958,1782338950000,-201.40761427,0.00018,2]
[426389961,1782338950000,-1000.0,0.00019178,2]
[426389968,1782338953000,-26006.4949844,0.0002,2]
[426389969,1782338956000,-50630.91634183,0.0002,2]
[426389973,1782338962000,-324675.18223466,0.0002,2]
[426389972,1782338962000,-352.45706555,0.00017745,2]
[426389975,1782338963000,-915.42856297,0.0002,2]
[426389978,1782338967000,-2277.66338478,0.0002,2]
[426389979,1782338968000,-169258.42682247,0.0002,2]
[426390037,1782339032000,-276.36,0.00016999,2]
[426390042,1782339032000,-243.53270212,0.00016999,2]
[426390041,1782339032000,-500.0,0.00016999,2]
[426390039,1782339032000,-223.64,0.00016999,2]
[426390049,1782339032000,-551.411503,0.00017745,2]
[426390048,1782339032000,-551.411503,0.00017745,2]
[426390046,1782339032000,-551.411503,0.00017745,2]
[426390043,1782339032000,-551.411503,0.00017745,2]
[426390050,1782339032000,-551.411503,0.00017745,2]
[426390051,1782339032000,-551.411503,0.00017745,2]
[426390047,1782339032000,-551.411503,0.00017745,2]
[426390044,1782339032000,-551.411503,0.00017745,2]
[426390053,1782339032000,-551.411503,0.00017745,2]
[426390054,1782339032000,-551.411503,0.00017745,2]
[426390061,1782339032000,-562.43973307,0.00017745,2]
[426390062,1782339032000,-562.43973307,0.00017745,2]
[426390058,1782339032000,-551.411503,0.00017745,2]
[426390063,1782339032000,-212.16568766,0.00017745,2]
[426390060,1782339032000,-562.43973307,0.00017745,2]
[426390057,1782339032000,-551.411503,0.00017745,2]
[426390055,1782339032000,-551.411503,0.00017745,2]
[426390056,1782339032000,-551.411503,0.00017745,2]
[426390045,1782339032000,-551.411503,0.00017745,2]
[426390052,1782339032000,-551.411503,0.00017745,2]
[426390059,1782339032000,-562.43973307,0.00017745,2]
[426390143,1782339038000,-4224.56791738,0.0002,2]
[426390148,1782339038000,-365392.95070287,0.0002,2]
[426390152,1782339038000,-487.0,0.0002,2]
[426390155,1782339038000,-704.92,0.0002,2]
[426390157,1782339038000,-448.75,0.00020229,2]
[426390150,1782339038000,-487.0,0.0002,2]
[426390145,1782339038000,-43960.59347055,0.0002,2]
[426390141,1782339038000,-16364.19324349,0.0002,2]
[426390122,1782339038000,-562.43973307,0.00017745,2]
[426390130,1782339038000,-8921.37856037,0.000199,2]
[426390139,1782339038000,-35691.70465493,0.0002,2]
[426390128,1782339038000,-1499.6599244,0.00019516,2]
[426390126,1782339038000,-562.43973307,0.00017745,2]
[426390124,1782339038000,-562.43973307,0.00017745,2]
[426390120,1782339038000,-562.43973307,0.00017745,2]
[426390115,1782339038000,-350.27404541,0.00017745,2]
[426390160,1782339038000,-471.300231,0.0002023,2]
[426390132,1782339038000,-23382.67047025,0.0002,2]
[426390163,1782339038000,-471.300231,0.00021082,2]
[426390118,1782339038000,-562.43973307,0.00017745,2]
[426390170,1782339038000,-471.300231,0.00021933,2]
[426390166,1782339038000,-300.0,0.00021082,3]
[426390201,1782339038000,-3000.0,0.0002551,2]
[426390203,1782339038000,-3000.0,0.0002552,2]
[426390199,1782339038000,-3000.0,0.000255,2]
[426390194,1782339038000,-3000.0,0.0002548,2]
[426390196,1782339038000,-3000.0,0.0002549,2]
[426390190,1782339038000,-3000.0,0.0002546,2]
[426390188,1782339038000,-3000.0,0.0002545,2]
[426390177,1782339038000,-471.300231,0.00024488,2]
[426390192,1782339038000,-3000.0,0.0002547,2]
[426390178,1782339038000,-3000.0,0.000254,2]
[426390180,1782339038000,-3000.0,0.0002541,2]
[426390182,1782339038000,-3000.0,0.0002542,2]
[426390186,1782339038000,-3000.0,0.0002544,2]
[426390175,1782339038000,-471.300231,0.00023637,2]
[426390173,1782339038000,-471.300231,0.00022785,2]
[426390168,1782339038000,-2513.83511064,0.000215,2]
[426390171,1782339038000,-250.0,0.00022461,2]
[426390184,1782339038000,-3000.0,0.0002543,2]
[426390234,1782339039000,-3000.0,0.0002567,2]
[426390239,1782339039000,-3000.0,0.000257,2]
[426390235,1782339039000,-3000.0,0.0002568,2]
[426390241,1782339039000,-3000.0,0.0002571,2]
[426390261,1782339039000,-157.914151,0.00028942,7]
[426390246,1782339039000,-3000.0,0.0002573,2]
[426390248,1782339039000,-3000.0,0.0002574,2]
[426390259,1782339039000,-773.91489868,0.00027842,2]
[426390224,1782339039000,-3000.0,0.0002562,2]
[426390243,1782339039000,-3000.0,0.0002572,2]
[426390230,1782339039000,-3000.0,0.0002565,2]
[426390211,1782339039000,-3000.0,0.0002556,2]
[426390228,1782339039000,-3000.0,0.0002564,2]
[426390226,1782339039000,-3000.0,0.0002563,2]
[426390217,1782339039000,-3000.0,0.0002559,2]
[426390219,1782339039000,-3000.0,0.000256,2]
[426390221,1782339039000,-3000.0,0.0002561,2]
[426390207,1782339039000,-3000.0,0.0002554,2]
[426390215,1782339039000,-3000.0,0.0002558,2]
[426390205,1782339039000,-3000.0,0.0002553,2]
[426390249,1782339039000,-3000.0,0.0002575,2]
[426390209,1782339039000,-3000.0,0.0002555,2]
[426390213,1782339039000,-3000.0,0.0002557,2]
[426390232,1782339039000,-3000.0,0.0002566,2]
[426390253,1782339039000,-3000.0,0.0002577,2]
[426390237,1782339039000,-3000.0,0.0002569,2]
[426390263,1782339039000,-151.0,0.00028942,7]
[426390296,1782339039000,-151.0,0.00028942,7]
[426390300,1782339039000,-151.0,0.00028942,7]
[426390298,1782339039000,-151.0,0.00028942,7]
[426390302,1782339039000,-512.662499,0.00028942,7]
[426390309,1782339039000,-512.662499,0.00028942,7]
[426390306,1782339039000,-512.662499,0.00028942,7]
[426390304,1782339039000,-512.662499,0.00028942,7]
[426390294,1782339039000,-151.0,0.00028942,7]
[426390292,1782339039000,-1113.040345,0.00028942,7]
[426390283,1782339039000,-1113.040345,0.00028942,7]
[426390271,1782339039000,-868.745533,0.00028942,2]
[426390290,1782339039000,-1113.040345,0.00028942,7]
[426390285,1782339039000,-1113.040345,0.00028942,7]
[426390254,1782339039000,-3000.0,0.0002578,2]
[426390257,1782339039000,-5897.969538,0.0002579,2]
[426390281,1782339039000,-170.99343,0.00028942,7]
[426390266,1782339039000,-868.745533,0.00028942,2]
[426390268,1782339039000,-868.745533,0.00028942,2]
[426390264,1782339039000,-868.745533,0.00028942,2]
[426390275,1782339039000,-170.99343,0.00028942,7]
[426390277,1782339039000,-170.99343,0.00028942,7]
[426390311,1782339039000,-513305.73229333,0.00028944,2]
[426390278,1782339039000,-170.99343,0.00028942,7]
[426390273,1782339039000,-448.75,0.00028942,7]
[426390251,1782339039000,-3000.0,0.0002576,2]
[426390765,1782339046000,-490.1063834,0.00019999,2]
[426390768,1782339047000,-43.50264776,0.00019999,2]
[426390767,1782339047000,-500.0,0.00019999,2]
[426390766,1782339047000,-9.8936166,0.00019999,2]
[426390778,1782339093000,436.29197765,0.0001,2]
[426390791,1782339141000,500.0,0.00028914,60]
[426390792,1782339141000,279.07976051,0.00028914,60]
[426390794,1782339154000,301.71888634,0.0001,2]
[426390796,1782339168000,500.0,0.00028915,30]
[426390797,1782339168000,500.0,0.00028915,30]
[426390827,1782339356000,-151.91244951,0.00015835,2]
[426390852,1782339593000,417.15472785,0.00028915,30]
[426390857,1782339609000,151.0,0.00014755,2]
[426390859,1782339622000,1155.59385852,0.00015,2]
[426390867,1782339705000,158.0,0.00028914,120]
[426390868,1782339707000,158.0,0.00029914,120]
[426390883,1782339955000,-385.19139624,0.00014409,2]
[426390882,1782339955000,-627.63524243,0.00014265,2]
[426390886,1782340026000,-1166.64507581,0.00014265,2]
[426390887,1782340036000,-2890.66333414,0.00014265,2]
[426390888,1782340043000,-934.86369892,0.00014265,2]
[426390889,1782340045000,-7.82789113,0.00014265,2]
[426390890,1782340045000,-422.07539331,0.00014409,2]
[426390891,1782340047000,-559.21747032,0.00014409,2]
[426390893,1782340115000,3481.60329062,0.00014,2]
[426390896,1782340146000,-300.0,0.00014849,2]
[426390895,1782340146000,-1216.86155376,0.00014265,2]
[426390897,1782340146000,-574.0052128,0.00015779,2]
[426390900,1782340155000,-8192.2559622,0.00015863,2]
[426390899,1782340155000,-762.7439831,0.00015779,2]
[426390901,1782340155000,-220.9051311,0.00015932,2]
[426390902,1782340155000,-210.9543069,0.00016091,2]
[426390903,1782340155000,-1402.45382621,0.00016423,2]
[426390905,1782340155000,-204.532234,0.00016806,2]
[426390912,1782340155000,-500.0,0.00017747,2]
[426390906,1782340155000,-6379.32570304,0.0001691,2]
[426390907,1782340155000,-183.939474,0.0001691,2]
[426390908,1782340155000,-153.0,0.00017,7]
[426390909,1782340155000,-5413.3385777,0.00017157,2]
[426390913,1782340155000,-184.41647683,0.00017747,2]
[426390904,1782340155000,-2878.8865499,0.00016741,2]
[426390910,1782340155000,-153.0,0.0001734,7]
[426390911,1782340155000,-500.0,0.00017747,2]
[426390925,1782340155000,-19.24893952,0.00017747,2]
[426390924,1782340155000,-500.0,0.00017747,2]
[426390922,1782340155000,-190.1512707,0.00017747,2]
[426390920,1782340155000,-500.0,0.00017747,2]
[426390921,1782340155000,-500.0,0.00017747,2]
[426390923,1782340155000,-500.0,0.00017747,2]
[426390918,1782340155000,-500.0,0.00017747,2]
[426390916,1782340155000,-500.0,0.00017747,2]
[426390917,1782340155000,-210.1475048,0.00017747,2]
[426390915,1782340155000,-500.0,0.00017747,2]
[426390914,1782340155000,-500.0,0.00017747,2]
[426390919,1782340155000,-500.0,0.00017747,2]
[426390937,1782340161000,-500.0,0.00017747,2]
[426390942,1782340161000,-500.0,0.00017747,2]
[426390943,1782340161000,-500.0,0.00017747,2]
[426390941,1782340161000,-500.0,0.00017747,2]
[426390940,1782340161000,-500.0,0.00017747,2]
[426390938,1782340161000,-500.0,0.00017747,2]
[426390935,1782340161000,-500.0,0.00017747,2]
[426390936,1782340161000,-520.38578751,0.00017747,2]
[426390926,1782340161000,-6192.2963165,0.00015913,2]
[426390932,1782340161000,-500.0,0.00017747,2]
[426390934,1782340161000,-500.0,0.00017747,2]
[426390930,1782340161000,-500.0,0.00017747,2]
[426390931,1782340161000,-500.0,0.00017747,2]
[426390929,1782340161000,-500.0,0.00017747,2]
[426390945,1782340161000,-500.0,0.00017747,2]
[426390928,1782340161000,-500.0,0.00017747,2]
[426390927,1782340161000,-480.75106048,0.00017747,2]
[426390933,1782340161000,-500.0,0.00017747,2]
[426390944,1782340161000,-500.0,0.00017747,2]
[426390939,1782340161000,-500.0,0.00017747,2]
[426390946,1782340161000,-500.0,0.00017747,2]
[426390965,1782340161000,-500.0,0.00017747,2]
[426390947,1782340161000,-500.0,0.00017747,2]
[426390964,1782340161000,-500.0,0.00017747,2]
[426390963,1782340161000,-500.0,0.00017747,2]
[426390961,1782340161000,-500.0,0.00017747,2]
[426390960,1782340161000,-500.0,0.00017747,2]
[426390958,1782340161000,-500.0,0.00017747,2]
[426390959,1782340161000,-500.0,0.00017747,2]
[426390957,1782340161000,-500.0,0.00017747,2]
[426390962,1782340161000,-500.0,0.00017747,2]
[426390956,1782340161000,-500.0,0.00017747,2]
[426390953,1782340161000,-500.0,0.00017747,2]
[426390954,1782340161000,-500.0,0.00017747,2]
[426390952,1782340161000,-500.0,0.00017747,2]
[426390949,1782340161000,-500.0,0.00017747,2]
[426390951,1782340161000,-500.0,0.00017747,2]
[426390950,1782340161000,-500.0,0.00017747,2]
[426390955,1782340161000,-500.0,0.00017747,2]
[426390948,1782340161000,-500.0,0.00017747,2]
[426390981,1782340162000,-500.0,0.00017747,2]
[426390978,1782340162000,-500.0,0.00017747,2]
[426390980,1782340162000,-500.0,0.00017747,2]
[426390983,1782340162000,-500.0,0.00017747,2]
[426390982,1782340162000,-500.0,0.00017747,2]
[426390984,1782340162000,-500.0,0.00017747,2]
[426390986,1782340162000,-500.0,0.00017747,2]
[426390988,1782340162000,-500.0,0.00017747,2]
[426390979,1782340162000,-500.0,0.00017747,2]
[426390985,1782340162000,-500.0,0.00017747,2]
[426390977,1782340162000,-500.0,0.00017747,2]
[426390969,1782340162000,-500.0,0.00017747,2]
[426390974,1782340162000,-500.0,0.00017747,2]
[426390975,1782340162000,-492.93186793,0.00017747,2]
[426390973,1782340162000,-500.0,0.00017747,2]
[426390972,1782340162000,-500.0,0.00017747,2]
[426390971,1782340162000,-500.0,0.00017747,2]
[426390970,1782340162000,-500.0,0.00017747,2]
[426390968,1782340162000,-500.0,0.00017747,2]
[426390967,1782340162000,-500.0,0.00017747,2]
[426390966,1782340162000,-500.0,0.00017747,2]
[426390990,1782340162000,-500.0,0.00017747,2]
[426390976,1782340162000,-500.0,0.00017747,2]
[426390989,1782340162000,-500.0,0.00017747,2]
[426391004,1782340162000,-329.5626727,0.00017884,2]
[426390991,1782340162000,-500.0,0.00017747,2]
[426390987,1782340162000,-500.0,0.00017747,2]
[426391011,1782340162000,-153.0,0.0001904,7]
[426391013,1782340162000,-153.0,0.0001904,7]
[426391014,1782340162000,-164.8261041,0.0001904,7]
[426391012,1782340162000,-153.0,0.0001904,7]
[426391010,1782340162000,-153.0,0.0001904,7]
[426391009,1782340162000,-153.0,0.0001904,7]
[426391006,1782340162000,-153.0,0.0001836,7]
[426391007,1782340162000,-2844.514128,0.00018691,2]
[426391005,1782340162000,-167.11,0.00018019,2]
[426391003,1782340162000,-153.0,0.0001785,7]
[426391008,1782340162000,-153.0,0.0001904,7]
[426391002,1782340162000,-500.0,0.00017747,2]
[426391001,1782340162000,-500.0,0.00017747,2]
[426390992,1782340162000,-500.0,0.00017747,2]
[426390994,1782340162000,-500.0,0.00017747,2]
[426390995,1782340162000,-500.0,0.00017747,2]
[426390998,1782340162000,-500.0,0.00017747,2]
[426390993,1782340162000,-500.0,0.00017747,2]
[426390996,1782340162000,-500.0,0.00017747,2]
[426390999,1782340162000,-500.0,0.00017747,2]
[426391000,1782340162000,-500.0,0.00017747,2]
[426390997,1782340162000,-450.0,0.00017747,2]
[426391026,1782340163000,-269.42083524,0.00020789,7]
[426391035,1782340163000,-401.792595,0.00023493,2]
[426391036,1782340163000,-255.61,0.00023709,4]
[426391033,1782340163000,-401.792595,0.00022676,2]
[426391031,1782340163000,-1034.50630072,0.00022175,7]
[426391030,1782340163000,-401.792595,0.00021859,2]
[426391032,1782340163000,-269.42083525,0.00022175,7]
[426391029,1782340163000,-269.42083524,0.00021383,7]
[426391028,1782340163000,-1034.5063007,0.00021383,7]
[426391027,1782340163000,-401.792595,0.00021042,2]
[426391037,1782340163000,-217.1554747,0.000245,2]
[426391024,1782340163000,-401.792595,0.00020225,2]
[426391023,1782340163000,-269.42083524,0.00020195,7]
[426391021,1782340163000,-500.0,0.00019899,2]
[426391022,1782340163000,-1034.5063007,0.00020195,7]
[426391018,1782340163000,-500.0,0.00019798,2]
[426391020,1782340163000,-269.42083524,0.00019799,7]
[426391019,1782340163000,-1034.5063007,0.00019799,7]
[426391016,1782340163000,-401.792595,0.00019408,2]
[426391017,1782340163000,-500.0,0.00019798,2]
[426391015,1782340163000,-270.75525679,0.00019068,2]
[426391025,1782340163000,-1034.5063007,0.00020789,7]
[426391039,1782340163000,-204.532234,0.00025209,2]
[426391034,1782340163000,-153.87792411,0.00023363,5]
[426391040,1782340163000,-2937.2889324,0.0002598,2]
[426391061,1782340163000,-730.65555317,0.0002657,2]
[426391060,1782340163000,-730.65555317,0.0002657,2]
[426391059,1782340163000,-730.65555317,0.0002657,2]
[426391058,1782340163000,-730.65555317,0.0002657,2]
[426391057,1782340163000,-730.65555317,0.0002657,2]
[426391056,1782340163000,-730.65555317,0.0002657,2]
[426391055,1782340163000,-730.65555317,0.0002657,2]
[426391052,1782340163000,-730.65555317,0.0002657,2]
[426391053,1782340163000,-730.65555317,0.0002657,2]
[426391054,1782340163000,-730.65555317,0.0002657,2]
[426391051,1782340163000,-730.65555317,0.0002657,2]
[426391038,1782340163000,-217.15547469,0.000245,2]
[426391049,1782340163000,-730.65555317,0.0002657,2]
[426391042,1782340163000,-1000.0,0.00026301,2]
[426391041,1782340163000,-1000.0,0.00026301,2]
[426391062,1782340163000,-730.65555317,0.0002657,2]
[426391043,1782340163000,-1000.0,0.00026301,2]
[426391050,1782340163000,-730.65555317,0.0002657,2]
[426391046,1782340163000,-730.65555317,0.0002657,2]
[426391045,1782340163000,-5827.71,0.00026301,2]
[426391047,1782340163000,-544.27789188,0.0002657,2]
[426391048,1782340163000,-730.65555317,0.0002657,2]
[426391044,1782340163000,-627.60747826,0.00026301,2]
[426391076,1782340164000,-751.53142611,0.0002657,2]
[426391086,1782340164000,-5827.71,0.00027397,2]
[426391083,1782340164000,-160.0,0.00027,7]
[426391082,1782340164000,-5827.71,0.00026849,2]